fUSD/lending_fUSD_20260203
["ID","MTS","AMOUNT","RATE_DAILY","PERIOD"]
[404384595,1770088243725,-691.95,0.00013698,2]
[404384597,1770088243735,-691.95,0.00013698,2]
[404384599,1770088243746,-691.95,0.00013698,2]
[404384601,1770088243756,-691.95,0.00013698,2]
[404384603,1770088243768,-691.95,0.00013698,2]
[404384605,1770088243779,-691.95,0.00013698,2]
[404384608,1770088243789,-691.95,0.00013698,2]
[404384610,1770088243800,-691.95,0.00013698,2]
[404384612,1770088243810,-691.95,0.00013698,2]
[404384614,1770088243820,-691.95,0.00013698,2]
[404384616,1770088243831,-691.95,0.00013698,2]
[404384618,1770088243841,-691.95,0.00013698,2]
[404384620,1770088243851,-691.95,0.00013698,2]
[404384622,1770088243861,-691.95,0.00013698,2]
[404384624,1770088243872,-691.95,0.00013698,2]
[404384627,1770088243882,-691.95,0.00013698,2]
[404384629,1770088243893,-691.95,0.00013698,2]
[404384631,1770088243904,-691.95,0.00013698,2]
[404384659,1770088244160,-691.95,0.00013698,2]
[404384661,1770088244170,-691.95,0.00013698,2]
[404384663,1770088244179,-691.95,0.00013698,2]
[404384665,1770088244189,-691.95,0.00013698,2]
[404384667,1770088244198,-691.95,0.00013698,2]
[404384669,1770088244207,-692.10667928,0.00013698,2]
[404384671,1770088244216,-500.0,0.00013698,2]
[404384673,1770088244226,-154.17727181,0.00013698,2]
[404384675,1770088244235,-707.45,0.00013698,2]
[404384677,1770088244244,-707.45,0.00013698,2]
[404384679,1770088244253,-707.45,0.00013698,2]
[404384681,1770088244263,-707.45,0.00013698,2]
[404384683,1770088244272,-983.98,0.00013698,2]
[404384685,1770088244281,-707.45,0.00013698,2]
[404384687,1770088244291,-983.98,0.00013698,2]
[404384689,1770088244302,-707.45,0.00013698,2]
[404384691,1770088244311,-983.98,0.00013698,2]
[404384693,1770088244321,-707.45,0.00013698,2]
[404384695,1770088244329,-983.98,0.00013698,2]
[404384697,1770088244339,-707.45,0.00013698,2]
[404384699,1770088244348,-983.98,0.00013698,2]
[404384701,1770088244358,-707.45,0.00013698,2]
[404384703,1770088244368,-983.98,0.00013698,2]
[404384705,1770088244377,-707.45,0.00013698,2]
[404384707,1770088244386,-983.98,0.00013698,2]
[404384709,1770088244395,-707.45,0.00013698,2]
[404384711,1770088244403,-983.98,0.00013698,2]
[404384713,1770088244413,-707.45,0.00013698,2]
[404384715,1770088244424,-983.98,0.00013698,2]
[404384717,1770088244434,-707.45,0.00013698,2]
[404384718,1770088244447,-983.98,0.00013698,2]
[404384719,1770088244457,-707.45,0.00013698,2]
[404384720,1770088244466,-983.98,0.00013698,2]
[404384721,1770088244476,-707.45,0.00013698,2]
[404384722,1770088244485,-707.45,0.00013698,2]
[404384723,1770088244495,-983.98,0.00013698,2]
[404384724,1770088244505,-707.45,0.00013698,2]
[404384725,1770088244515,-983.98,0.00013698,2]
[404384726,1770088244525,-707.45,0.00013698,2]
[404384727,1770088244534,-983.98,0.00013698,2]
[404384728,1770088244544,-707.45,0.00013698,2]
[404384729,1770088244553,-983.98,0.00013698,2]
[404384730,1770088244563,-707.45,0.00013698,2]
[404384732,1770088244572,-983.98,0.00013698,2]
[404384733,1770088244582,-707.45,0.00013698,2]
[404384734,1770088244591,-983.98,0.00013698,2]
[404384735,1770088244601,-707.45,0.00013698,2]
[404384736,1770088244611,-983.98,0.00013698,2]
[404384737,1770088244620,-983.98,0.00013698,2]
[404384738,1770088244630,-707.45,0.00013698,2]
[404384739,1770088244639,-983.98,0.00013698,2]
[404384740,1770088244649,-707.5960744,0.00013698,2]
[404384741,1770088244658,-983.98,0.00013698,2]
[404384742,1770088244667,-983.98,0.00013698,2]
[404384743,1770088244677,-983.98,0.00013698,2]
[404384744,1770088244686,-984.15724743,0.00013698,2]
[404384745,1770088244696,-500.0,0.00013698,2]
[404384746,1770088244705,-500.0,0.00013698,2]
[404384747,1770088244715,-500.0,0.00013698,2]
[404384748,1770088244724,-500.0,0.00013698,2]
[404384749,1770088244733,-500.0,0.00013698,2]
[404384750,1770088244743,-500.0,0.00013698,2]
[404384751,1770088244752,-500.0,0.00013698,2]
[404384752,1770088244763,-222.2546637,0.00013698,2]
[404384753,1770088244772,-500.0,0.00013698,2]
[404384754,1770088244781,-500.0,0.00013698,2]
[404384755,1770088244790,-500.0,0.00013698,2]
[404384756,1770088244799,-500.0,0.00013698,2]
[404384757,1770088244809,-500.0,0.00013698,2]
[404384758,1770088244823,-257.68029919,0.00013698,2]
[404384759,1770088244832,-500.0,0.00013698,2]
[404384760,1770088244841,-500.0,0.00013698,2]
[404384761,1770088244850,-500.0,0.00013698,2]
[404384762,1770088244859,-500.0,0.00013698,2]
[404384763,1770088244869,-544.31,0.00013698,2]
[404384764,1770088244879,-544.31,0.00013698,2]
[404384765,1770088244888,-340.86649345,0.00013698,2]
[404384766,1770088244898,-544.31,0.00013698,2]
[404384767,1770088244907,-544.31,0.00013698,2]
[404384768,1770088244917,-544.31,0.00013698,2]
[404384769,1770088244927,-544.31,0.00013698,2]
[404384770,1770088244937,-544.31,0.00013698,2]
[404384771,1770088244947,-544.31,0.00013698,2]
[404384772,1770088244957,-544.31,0.00013698,2]
[404384773,1770088244967,-544.31,0.00013698,2]
[404384774,1770088244977,-544.31,0.00013698,2]
[404384775,1770088244986,-544.31,0.00013698,2]
[404384776,1770088244995,-544.31,0.00013698,2]
[404384777,1770088245005,-544.31,0.00013698,2]
[404384778,1770088245014,-544.31,0.00013698,2]
[404384779,1770088245024,-544.31,0.00013698,2]
[404384780,1770088245034,-544.31,0.00013698,2]
[404384781,1770088245043,-544.31,0.00013698,2]
[404384782,1770088245052,-544.31,0.00013698,2]
[404384783,1770088245062,-544.31,0.00013698,2]
[404384784,1770088245072,-544.31,0.00013698,2]
[404384785,1770088245081,-544.31,0.00013698,2]
[404384786,1770088245091,-544.31,0.00013698,2]
[404384787,1770088245101,-544.47652437,0.00013698,2]
[404384788,1770088245110,-500.0,0.00013698,2]
[404384789,1770088245119,-500.0,0.00013698,2]
[404384790,1770088245129,-500.0,0.00013698,2]
[404384791,1770088245139,-500.0,0.00013698,2]
[404384792,1770088245148,-500.0,0.00013698,2]
[404384793,1770088245158,-500.0,0.00013698,2]
[404384794,1770088245168,-621.54062452,0.00013698,2]
[404384795,1770088245178,-3770.08,0.00013699,2]
[404384796,1770088245188,-356.86,0.00013699,2]
[404384797,1770088245198,-297.38,0.00013699,2]
[404384798,1770088245210,-247.82,0.00013699,2]
[404384799,1770088245220,-206.51,0.00013699,2]
[404384801,1770088245230,-172.1,0.00013699,2]
[404384802,1770088245240,-860.5,0.00013699,2]
[404384803,1770088245249,-163.51025142,0.00013699,2]
[404384804,1770088245258,-500.0,0.00013699,2]
[404384805,1770088245267,-500.0,0.00013699,2]
[404384806,1770088245276,-500.0,0.00013699,2]
[404384807,1770088245285,-500.0,0.00013699,2]
[404384808,1770088245295,-500.0,0.00013699,2]
[404384809,1770088245304,-500.0,0.00013699,2]
[404384810,1770088245314,-500.0,0.00013699,2]
[404384811,1770088245324,-500.27732573,0.00013699,2]
[404384812,1770088245333,-574.23426671,0.00013699,2]
[404384813,1770088245343,-500.0,0.00013699,2]
[404384814,1770088245352,-500.0,0.00013699,2]
[404384815,1770088245362,-500.23723554,0.00013699,2]
[404384816,1770088245372,-500.0,0.00013699,2]
[404384817,1770088245382,-500.93680817,0.00013699,2]
[404384818,1770088245394,-500.0,0.00013699,2]
[404384819,1770088245404,-161.50529387,0.00013699,2]
[404384820,1770088245414,-559.8488152,0.00013699,2]
[404384821,1770088245426,-500.0,0.00013699,2]
[404384822,1770088245435,-500.0,0.00013699,2]
[404384823,1770088245445,-522.46720668,0.00013699,2]
[404384824,1770088245454,-500.0,0.00013699,2]
[404384825,1770088245463,-500.0,0.00013699,2]
[404384826,1770088245474,-500.87599875,0.00013699,2]
[404384827,1770088245484,-500.0,0.00013699,2]
[404384828,1770088245494,-464.55637518,0.00013699,2]
[404384829,1770088245503,-500.0,0.00013699,2]
[404384830,1770088245514,-500.5484423,0.00013699,2]
[404384831,1770088245523,-460.43591281,0.00013699,2]
[404384832,1770088245533,-160.66040125,0.00013699,2]
[404384833,1770088245543,-500.35331747,0.00013699,2]
[404384834,1770088245554,-500.0,0.00013699,2]
[404384835,1770088245564,-500.0,0.00013699,2]
[404384836,1770088245574,-500.5919293,0.00013699,2]
[404384837,1770088245583,-500.0,0.00013699,2]
[404384838,1770088245592,-500.64906369,0.00013699,2]
[404384839,1770088245602,-163.3987975,0.00013699,2]
[404384840,1770088245611,-160.59346799,0.00013699,2]
[404384841,1770088245620,-500.58962074,0.00013699,2]
[404384842,1770088245630,-151.14630637,0.00013699,2]
[404384843,1770088245649,-336.54043912,0.00013699,2]
[404384844,1770088245659,-500.0,0.00013699,2]
[404384845,1770088245672,-340.20370382,0.00013699,2]
[404384846,1770088245682,-500.86578537,0.00013699,2]
[404384847,1770088245691,-500.0,0.00013699,2]
[404384848,1770088245701,-513.10579146,0.00013699,2]
[404384849,1770088245720,-500.0,0.00013699,2]
[404384850,1770088245732,-500.81916532,0.00013699,2]
[404384851,1770088245742,-500.0,0.00013699,2]
[404384852,1770088245751,-500.0,0.00013699,2]
[404384853,1770088245760,-500.0,0.00013699,2]
[404384854,1770088245772,-500.0,0.00013699,2]
[404384855,1770088245781,-550.30933962,0.00013699,2]
[404384856,1770088245791,-500.0,0.00013699,2]
[404384857,1770088245801,-185.58842185,0.00013699,2]
[404384858,1770088245810,-500.32227363,0.00013699,2]
[404384859,1770088245819,-565.28889889,0.00013699,2]
[404384860,1770088245829,-168.06766259,0.00013699,2]
[404384861,1770088245840,-500.0,0.00013699,2]
[404384862,1770088245850,-500.0,0.00013699,2]
[404384863,1770088245860,-200.90009189,0.00013699,2]
[404384864,1770088245869,-500.0,0.00013699,2]
[404384865,1770088245879,-163.17509368,0.00013699,2]
[404384866,1770088245889,-500.0,0.00013699,2]
[404384867,1770088245898,-500.0,0.00013699,2]
[404384868,1770088245908,-500.0,0.00013699,2]
[404384869,1770088245918,-500.0,0.00013699,2]
[404384870,1770088245927,-500.0,0.00013699,2]
[404384871,1770088245937,-500.0,0.00013699,2]
[404384872,1770088245946,-500.0,0.00013699,2]
[404384873,1770088245962,-500.0,0.00013699,2]
[404384874,1770088245981,-500.0,0.00013699,2]
[404384875,1770088245998,-500.0,0.00013699,2]
[404384876,1770088246008,-500.0,0.00013699,2]
[404384877,1770088246018,-558.68376736,0.00013699,2]
[404384878,1770088246027,-500.0,0.00013699,2]
[404384879,1770088246037,-486.39586711,0.00013699,2]
[404384880,1770088246056,-593.67705191,0.00013699,2]
[404384881,1770088246075,-500.0,0.00013699,2]
[404384882,1770088246084,-4398.36,0.000137,2]
[404384883,1770088246094,-4398.36,0.000137,2]
[404384884,1770088246103,-4398.36,0.000137,2]
[404384885,1770088246112,-4398.36,0.000137,2]
[404384886,1770088246122,-4398.36,0.000137,2]
[404384887,1770088246131,-173.17,0.00013755,2]
[404384888,1770088246140,-51832.04586549,0.00013766,2]
[404384889,1770088246149,-200.0,0.00013836,2]
[404384890,1770088246158,-500.0,0.00013836,2]
[404384891,1770088246167,-267.67,0.00013867,2]
[404384892,1770088246177,-4000.0,0.0001391,2]
[404384893,1770088246186,-4000.0,0.0001391,2]
[404384894,1770088246195,-150.0,0.00013925,2]
[404384895,1770088246205,-998.66242274,0.00013962,2]
[404384896,1770088246214,-200.0,0.00014,2]
[404384897,1770088246224,-6453.0,0.00014046,2]
[404384899,1770088246234,-2129.0,0.00014051,2]
[404384901,1770088246244,-1000.0,0.00014188,2]
[404384903,1770088246254,-174.61919141,0.00014189,2]
[404384904,1770088246263,-578.20924308,0.00014189,2]
[404384906,1770088246272,-2000.0,0.00014189,2]
[404384907,1770088246282,-721.12765535,0.00014189,2]
[404384909,1770088246291,-2000.0,0.00014189,2]
[404384911,1770088246301,-2000.0,0.00014189,2]
[404384913,1770088246310,-2000.0,0.00014189,2]
[404384914,1770088246319,-2000.0,0.00014189,2]
[404384915,1770088246328,-2000.0,0.00014189,2]
[404384916,1770088246338,-2000.0,0.00014189,2]
[404384917,1770088246347,-2000.0,0.00014189,2]
[404384918,1770088246356,-2000.0,0.00014189,2]
[404384919,1770088246365,-2000.0,0.00014189,2]
[404384921,1770088246375,-2000.0,0.00014189,2]
[404384923,1770088246385,-1428.38747117,0.00014189,2]
[404384925,1770088246394,-151.0,0.00014189,2]
[404384927,1770088246403,-209.40437684,0.00014189,2]
[404384929,1770088246413,-500.0,0.00014189,2]
[404384931,1770088246423,-606.15680385,0.00014189,2]
[404384933,1770088246433,-868.92858835,0.00014189,2]
[404384935,1770088246443,-322.6107,0.00014189,2]
[404384937,1770088246452,-209.40437684,0.00014189,2]
[404384939,1770088246462,-277.35679052,0.00014189,2]
[404384941,1770088246471,-209.40437684,0.00014189,2]
[404384943,1770088246480,-217.15233878,0.00014244,2]
[404384945,1770088246489,-1000.0,0.00014247,2]
[404384947,1770088246498,-505.3656764,0.00014247,2]
[404384949,1770088246507,-502.73500783,0.00014247,2]
[404384951,1770088246516,-1000.0,0.00014247,2]
[404384953,1770088246526,-1000.0,0.00014247,2]
[404384954,1770088246535,-1000.0,0.00014247,2]
[404384955,1770088246545,-1000.0,0.00014247,2]
[404384956,1770088246555,-1000.0,0.00014247,2]
[404384957,1770088246565,-1000.0,0.00014247,2]
[404384958,1770088246574,-1000.0,0.00014247,2]
[404384959,1770088246584,-1000.0,0.00014247,2]
[404384960,1770088246593,-1000.0,0.00014247,2]
[404384961,1770088246602,-1000.0,0.00014247,2]
[404384963,1770088246612,-1001.09816726,0.00014247,2]
[404384965,1770088246621,-1000.0,0.00014247,2]
[404384966,1770088246630,-500.7588569,0.00014247,2]
[404384967,1770088246640,-1000.0,0.00014247,2]
[404384968,1770088246649,-1000.0,0.00014247,2]
[404384969,1770088246658,-1000.0,0.00014247,2]
[404384970,1770088246675,-1000.0,0.00014247,2]
[404384971,1770088246690,-1000.0,0.00014247,2]
[404384972,1770088246699,-501.07018625,0.00014247,2]
[404384973,1770088246715,-1000.0,0.00014247,2]
[404384974,1770088246726,-335.67208162,0.00014247,2]
[404384975,1770088246736,-1138.52784923,0.00014247,2]
[404384976,1770088246745,-487.32196984,0.00014247,2]
[404384977,1770088246755,-1000.0,0.00014247,2]
[404384978,1770088246765,-1000.0,0.00014247,2]
[404384979,1770088246774,-1000.0,0.00014247,2]
[404384980,1770088246784,-1000.0,0.00014247,2]
[404384981,1770088246794,-1000.0,0.00014247,2]
[404384982,1770088246803,-1000.0,0.00014247,2]
[404384983,1770088246812,-500.61825872,0.00014247,2]
[404384984,1770088246822,-1000.0,0.00014247,2]
[404384985,1770088246833,-1000.0,0.00014247,2]
[404384986,1770088246843,-1000.0,0.00014247,2]
[404384987,1770088246853,-1000.0,0.00014247,2]
[404384988,1770088246863,-1000.0,0.00014247,2]
[404384989,1770088246873,-1000.0,0.00014247,2]
[404384990,1770088246882,-1000.0,0.00014247,2]
[404384991,1770088246892,-1000.0,0.00014247,2]
[404384992,1770088246901,-500.74996921,0.00014247,2]
[404384993,1770088246910,-501.74698965,0.00014247,2]
[404384994,1770088246920,-178.43,0.0001427,2]
[404384995,1770088246929,-225.18697532,0.00014299,2]
[404384996,1770088246939,-22720.7376,0.00014347,2]
[404384997,1770088246948,-233.51889341,0.00014354,2]
[404384998,1770088246957,-1852.42,0.00014372,2]
[404384999,1770088246968,-200.0,0.00014384,2]
[404385000,1770088246978,-500.0,0.00014384,2]
[404385001,1770088246987,-242.15909246,0.00014409,2]
[404385002,1770088246997,-4500.0,0.00014458,2]
[404385003,1770088247007,-1046.8548043,0.00014458,2]
[404385004,1770088247017,-251.11897888,0.00014464,2]
[404385005,1770088247026,-300.47840846,0.00014473,2]
[404385006,1770088247036,-260.4103811,0.00014519,2]
[404385007,1770088247046,-270.0455652,0.00014574,2]
[404385008,1770088247056,-1000.0,0.00014606,2]
[404385009,1770088247066,-1000.0,0.00014606,2]
[404385010,1770088247076,-280.03725112,0.00014629,2]
[404385011,1770088247086,-1000.0,0.00014656,2]
[404385012,1770088247096,-1000.0,0.00014656,2]
[404385013,1770088247106,-290.39862941,0.00014684,2]
[404385014,1770088247115,-181.08010149,0.00014737,2]
[404385015,1770088247124,-1481.23780761,0.00014737,2]
[404385016,1770088247134,-151.0,0.00014737,2]
[404385017,1770088247144,-278.95447225,0.00014737,2]
[404385018,1770088247153,-319.59046933,0.00014737,2]
[404385019,1770088247163,-217.15233878,0.00014737,2]
[404385020,1770088247172,-301.1433787,0.00014739,2]
[404385021,1770088247182,-51832.04586549,0.00014786,2]
[404385022,1770088247191,-23350.0,0.00014789,2]
[404385023,1770088247200,-1500.0,0.00014795,2]
[404385024,1770088247209,-1500.0,0.00014795,2]
[404385025,1770088247219,-1371.81162767,0.00014795,2]
[404385026,1770088247228,-1501.46388009,0.00014795,2]
[404385027,1770088247237,-1451.590897,0.00014795,2]
[404385028,1770088247247,-1137.40575138,0.00014795,2]
[404385029,1770088247256,-501.24999677,0.00014795,2]
[404385030,1770088247266,-1500.0,0.00014795,2]
[404385031,1770088247275,-631.42408239,0.00014795,2]
[404385032,1770088247284,-1500.0,0.00014795,2]
[404385033,1770088247293,-1500.0,0.00014795,2]
[404385034,1770088247305,-1500.0,0.00014795,2]
[404385035,1770088247314,-1500.0,0.00014795,2]
[404385036,1770088247323,-501.01495544,0.00014795,2]
[404385037,1770088247332,-433.76362311,0.00014795,2]
[404385038,1770088247341,-501.14950121,0.00014795,2]
[404385039,1770088247350,-1500.0,0.00014795,2]
[404385040,1770088247359,-496.09583646,0.00014795,2]
[404385041,1770088247369,-1510.89137022,0.00014795,2]
[404385042,1770088247378,-1003.34257048,0.00014795,2]
[404385043,1770088247387,-1221.97965505,0.00014795,2]
[404385044,1770088247396,-1500.0,0.00014795,2]
[404385045,1770088247406,-1500.0,0.00014795,2]
[404385046,1770088247415,-465.16495418,0.00014795,2]
[404385047,1770088247427,-1500.0,0.00014795,2]
[404385048,1770088247437,-1505.8521348,0.00014795,2]
[404385049,1770088247447,-386.62164618,0.00014795,2]
[404385050,1770088247456,-1500.0,0.00014795,2]
[404385051,1770088247466,-1503.93923178,0.00014795,2]
[404385052,1770088247475,-525.83341626,0.00014795,2]
[404385053,1770088247484,-1500.0,0.00014795,2]
[404385054,1770088247494,-504.40745995,0.00014795,2]
[404385055,1770088247504,-151.0,0.00014795,2]
[404385056,1770088247513,-151.0,0.00014795,2]
[404385057,1770088247523,-151.0,0.00014795,2]
[404385058,1770088247532,-193.998095,0.00014795,2]
[404385059,1770088247542,-1000.0,0.0001483,2]
[404385060,1770088247552,-316.261,0.0001483,2]
[404385061,1770088247561,-344.33746915,0.000149,5]
[404385062,1770088247571,-179.650583,0.000149,2]
[404385063,1770088247580,-202.52521576,0.00014932,2]
[404385064,1770088247589,-500.0,0.00014932,2]
[404385065,1770088247599,-250.0,0.00015,2]
[404385066,1770088247607,-151.0,0.00015005,2]
[404385067,1770088247616,-5000.0,0.00015006,2]
[404385068,1770088247626,-773.4,0.00015068,2]
[404385069,1770088247635,-1019.752279,0.00015068,2]
[404385070,1770088247644,-1019.752279,0.00015068,2]
[404385071,1770088247653,-1019.752279,0.00015068,2]
[404385072,1770088247663,-1019.752279,0.00015068,2]
[404385073,1770088247672,-187.78006525,0.00015285,2]
[404385074,1770088247681,-1536.04360649,0.00015285,2]
[404385075,1770088247691,-151.0,0.00015285,2]
[404385076,1770088247699,-225.18697532,0.00015285,2]
[404385077,1770088247709,-773.4,0.00015342,2]
[404385078,1770088247718,-491.769278,0.00015342,2]
[404385079,1770088247727,-503.60999982,0.00015342,2]
[404385080,1770088247736,-193.42410424,0.00015342,2]
[404385081,1770088247745,-505.54148185,0.00015342,2]
[404385082,1770088247754,-482.80435779,0.00015342,2]
[404385083,1770088247763,-1008.93802715,0.00015342,2]
[404385084,1770088247959,-1008.29548526,0.00015342,2]
[404385085,1770088247971,-503.10964099,0.00015342,2]
[404385086,1770088247988,-501.55601452,0.00015342,2]
[404385087,1770088248001,-503.67614812,0.00015342,2]
[404385088,1770088248011,-1414.39055096,0.00015342,2]
[404385089,1770088248022,-501.66558046,0.00015342,2]
[404385090,1770088248032,-2000.0,0.00015342,2]
[404385091,1770088248042,-151.0,0.00015353,2]
[404385092,1770088248052,-151.0,0.00015353,2]
[404385093,1770088248062,-202.470385,0.00015353,2]
[404385094,1770088248071,-202.470385,0.00015353,2]
[404385095,1770088248080,-202.470385,0.00015353,2]
[404385096,1770088248089,-202.470385,0.00015353,2]
[404385097,1770088248099,-9035.0,0.00015451,2]
[404385098,1770088248108,-3620.0,0.00015455,2]
[404385099,1770088248117,-500.0,0.0001548,2]
[404385100,1770088248126,-173.17,0.0001551,2]
[404385101,1770088248135,-498.47777625,0.00015553,2]
[404385102,1770088248144,-334.5472959,0.00015558,2]
[404385103,1770088248153,-267.67,0.00015672,2]
[404385104,1770088248162,-3505.0630559,0.00015749,2]
[404385105,1770088248171,-485.623746,0.00015749,2]
[404385106,1770088248181,-155.0,0.00015779,2]
[404385107,1770088248190,-51832.04586549,0.00015805,2]
[404385108,1770088248199,-194.72792766,0.00015833,2]
[404385109,1770088248208,-1592.87721993,0.00015833,2]
[404385110,1770088248217,-151.0,0.00015833,2]
[404385111,1770088248227,-233.51889341,0.00015833,2]
[404385112,1770088248236,-2500.0,0.0001589,2]
[404385113,1770088248245,-200.0,0.000159,5]
[404385114,1770088248255,-500.0,0.00015903,2]
[404385115,1770088248268,-1000.0,0.00015918,2]
[404385116,1770088248279,-156.0,0.00016,2]
[404385117,1770088248290,-200.0,0.00016,2]
[404385118,1770088248300,-150.32725344,0.00016,2]
[404385119,1770088248310,-500.0,0.00016028,2]
[404385120,1770088248320,-1000.0,0.00016093,2]
[404385121,1770088248339,-150.01713612,0.000161,2]
[404385122,1770088248351,-9999.99,0.00016116,2]
[404385123,1770088248361,-150.0,0.000162,2]
[404385124,1770088248370,-200.0,0.0001622,2]
[404385125,1770088248379,-150.0,0.00016222,2]
[404385126,1770088248389,-150.0,0.00016244,2]
[404385127,1770088248398,-150.0,0.00016267,2]
[404385128,1770088248407,-150.0,0.00016289,2]
[404385129,1770088248417,-150.0,0.00016311,2]
[404385130,1770088248427,-150.0,0.00016333,2]
[404385131,1770088248437,-150.0,0.00016356,2]
[404385132,1770088248447,-159.65710457,0.00016356,2]
[404385133,1770088248455,-150.0,0.00016378,2]
[404385134,1770088248465,-201.93286099,0.00016381,2]
[404385135,1770088248474,-1651.81367706,0.00016381,2]
[404385136,1770088248484,-151.0,0.00016381,2]
[404385137,1770088248493,-242.15909246,0.00016381,2]
[404385138,1770088248502,-150.0,0.000164,2]
[404385139,1770088248511,-150.0,0.00016422,2]
[404385140,1770088248521,-2000.0,0.00016438,2]
[404385141,1770088248530,-500.0,0.00016438,2]
[404385142,1770088248539,-500.0,0.00016438,2]
[404385143,1770088248549,-500.0,0.00016438,2]
[404385144,1770088248558,-500.0,0.00016438,2]
[404385145,1770088248568,-311.4837832,0.00016438,2]
[404385146,1770088248577,-150.38423359,0.00016438,2]
[404385147,1770088248586,-151.0,0.00016438,2]
[404385148,1770088248595,-800.0,0.00016438,2]
[404385149,1770088248605,-227.27,0.00016438,2]
[404385150,1770088248616,-1681.76582576,0.00016438,2]
[404385151,1770088248628,-150.0,0.00016444,2]
[404385152,1770088248637,-500.0,0.00016466,2]
[404385153,1770088248646,-150.0,0.00016467,2]
[404385154,1770088248655,-150.0,0.00016489,2]
[404385155,1770088248664,-150.0,0.00016511,2]
[404385156,1770088248674,-1000.0,0.00016515,2]
[404385157,1770088248683,-150.0,0.00016533,2]
[404385158,1770088248692,-150.0,0.00016556,2]
[404385159,1770088248701,-500.0,0.00016576,2]
[404385160,1770088248710,-150.0,0.00016578,2]
[404385161,1770088248720,-150.0,0.000166,2]
[404385162,1770088248729,-150.0,0.00016622,2]
[404385163,1770088248738,-150.0,0.00016644,2]
[404385164,1770088248747,-2084.71628135,0.0001665,2]
[404385165,1770088248757,-16788.91059816,0.00016653,2]
[404385166,1770088248766,-150.0,0.00016667,2]
[404385167,1770088248775,-616.0,0.00016667,2]
[404385168,1770088248785,-162.292,0.00016667,2]
[404385169,1770088248795,-1435.995,0.00016667,2]
[404385170,1770088248806,-1335.0,0.00016667,2]
[404385171,1770088248815,-3530.56,0.00016667,2]
[404385172,1770088248826,-163.201,0.00016667,2]
[404385173,1770088248837,-1291.366,0.00016667,2]
[404385174,1770088248846,-917.0,0.00016667,2]
[404385175,1770088248856,-1225.717,0.00016667,2]
[404385176,1770088248866,-3258.079,0.00016672,2]
[404385177,1770088248876,-6580.0,0.00016672,2]
[404385178,1770088248886,-150.0,0.00016689,2]
[404385179,1770088248895,-150.0,0.00016711,2]
[404385180,1770088248905,-165.76,0.00016712,2]
[404385181,1770088248915,-150.0,0.00016733,2]
[404385182,1770088248926,-150.0,0.00016756,2]
[404385183,1770088248935,-150.0,0.00016778,2]
[404385184,1770088248946,-150.0,0.000168,2]
[404385185,1770088248955,-1500.0,0.000168,2]
[404385186,1770088248965,-150.0,0.00016822,2]
[404385187,1770088248975,-51832.04586549,0.00016825,2]
[404385188,1770088248985,-150.0,0.00016844,2]
[404385189,1770088248995,-150.0,0.00016867,2]
[404385190,1770088249006,-150.0,0.00016889,2]
[404385191,1770088249017,-200.0,0.000169,5]
[404385192,1770088249026,-150.0,0.00016911,2]
[404385193,1770088249035,-346.92554585,0.00016927,2]
[404385194,1770088249047,-599.60298507,0.00016928,2]
[404385195,1770088249056,-747.8093786,0.00016928,2]
[404385196,1770088249065,-209.40437684,0.00016929,2]
[404385197,1770088249075,-1712.93078312,0.00016929,2]